fUSD/lending_fUSD_20240802
["ID","MTS","AMOUNT","RATE_DAILY","PERIOD"]
[333895067,1722607851034,-1756.48,0.00019178,2]
[333895068,1722607851044,-1587.33,0.00019178,2]
[333895069,1722607851054,-2684.88,0.00019178,2]
[333895070,1722607851063,-612.37,0.00019178,2]
[333895071,1722607851072,-500.0,0.00019178,2]
[333895072,1722607851081,-1930.95,0.00019178,2]
[333895073,1722607851091,-4319.91,0.00019178,2]
[333895074,1722607851100,-500.0,0.00019178,2]
[333895075,1722607851109,-500.0,0.00019178,2]
[333895076,1722607851118,-815.94,0.00019178,2]
[333895077,1722607851127,-500.0,0.00019178,2]
[333895078,1722607851136,-1908.65,0.00019178,2]
[333895079,1722607851146,-937.81,0.00019178,2]
[333895080,1722607851155,-1643.79,0.00019178,2]
[333895081,1722607851164,-5398.51,0.00019178,2]
[333895082,1722607851174,-500.0,0.00019178,2]
[333895083,1722607851183,-540.52,0.00019178,2]
[333895084,1722607851192,-150.0,0.00019178,2]
[333895085,1722607851202,-500.0,0.00019178,2]
[333895086,1722607851211,-2174.83,0.00019178,2]
[333895087,1722607851220,-910.69,0.00019178,2]
[333895088,1722607851229,-622.31,0.00019178,2]
[333895089,1722607851239,-1256.23,0.00019178,2]
[333895090,1722607851249,-500.0,0.00019178,2]
[333895091,1722607851259,-4370.09,0.00019178,2]
[333895092,1722607851272,-1802.54,0.00019178,2]
[333895093,1722607851281,-512.1,0.00019178,2]
[333895094,1722607851290,-500.0,0.00019178,2]
[333895095,1722607851300,-500.0,0.00019178,2]
[333895096,1722607851309,-1896.13,0.00019178,2]
[333895097,1722607851319,-1107.1,0.00019178,2]
[333895098,1722607851328,-3262.24,0.00019178,2]
[333895099,1722607851337,-500.0,0.00019178,2]
[333895100,1722607851347,-500.0,0.00019178,2]
[333895101,1722607851357,-1010.13,0.00019178,2]
[333895102,1722607851366,-617.2,0.00019178,2]
[333895103,1722607851375,-500.0,0.00019178,2]
[333895104,1722607851385,-578.82,0.00019178,2]
[333895105,1722607851394,-364.68182834,0.00019178,2]
[333895106,1722607851403,-3273.56,0.00019178,2]
[333895107,1722607851412,-500.0,0.00019178,2]
[333895108,1722607851421,-1188.72,0.00019178,2]
[333895109,1722607851430,-4824.07,0.00019178,2]
[333895110,1722607851439,-500.0,0.00019178,2]
[333895111,1722607851449,-500.0,0.00019178,2]
[333895112,1722607851459,-500.0,0.00019178,2]
[333895113,1722607851468,-1132.37,0.00019178,2]
[333895114,1722607851477,-1072.95,0.00019178,2]
[333895115,1722607851486,-5141.35,0.00019178,2]
[333895116,1722607851495,-522.02,0.00019178,2]
[333895117,1722607851505,-1827.1,0.00019178,2]
[333895118,1722607851514,-500.0,0.00019178,2]
[333895119,1722607851526,-500.0,0.00019178,2]
[333895120,1722607851535,-500.0,0.00019178,2]
[333895121,1722607851544,-1110.41,0.00019178,2]
[333895122,1722607851553,-500.0,0.00019178,2]
[333895123,1722607851563,-500.0,0.00019178,2]
[333895124,1722607851582,-2427.33,0.00019178,2]
[333895125,1722607851592,-1796.79,0.00019178,2]
[333895126,1722607851601,-2923.57,0.00019178,2]
[333895127,1722607851610,-500.0,0.00019178,2]
[333895128,1722607851620,-500.0,0.00019178,2]
[333895129,1722607851630,-1655.66,0.00019178,2]
[333895130,1722607851639,-500.0,0.00019178,2]
[333895131,1722607851648,-500.0,0.00019178,2]
[333895132,1722607851657,-500.0,0.00019178,2]
[333895133,1722607851667,-500.0,0.00019178,2]
[333895134,1722607851677,-500.0,0.00019178,2]
[333895135,1722607851686,-500.0,0.00019178,2]
[333895136,1722607851695,-844.73,0.00019178,2]
[333895137,1722607851704,-500.0,0.00019178,2]
[333895138,1722607851714,-1212.05,0.00019178,2]
[333895139,1722607851724,-1493.2,0.00019178,2]
[333895140,1722607851733,-1079.22,0.00019178,2]
[333895141,1722607851743,-1507.33,0.00019178,2]
[333895142,1722607851755,-15022.24,0.00019178,2]
[333895143,1722607851764,-1101.04,0.00019178,2]
[333895144,1722607851778,-500.0,0.00019178,2]
[333895145,1722607851787,-500.0,0.00019178,2]
[333895146,1722607851796,-500.0,0.00019178,2]
[333895147,1722607851806,-1448.96,0.00019178,2]
[333895148,1722607851815,-500.0,0.00019178,2]
[333895149,1722607851826,-531.18,0.00019178,2]
[333895150,1722607851836,-500.0,0.00019178,2]
[333895151,1722607851846,-2931.84,0.00019178,2]
[333895152,1722607851855,-500.0,0.00019178,2]
[333895153,1722607851865,-24453.82,0.00019178,2]
[333895154,1722607851874,-641.83,0.00019178,2]
[333895155,1722607851884,-500.0,0.00019178,2]
[333895156,1722607851893,-1844.24,0.00019178,2]
[333895157,1722607851903,-979.74,0.00019178,2]
[333895158,1722607851913,-2237.93,0.00019178,2]
[333895159,1722607851923,-500.0,0.00019178,2]
[333895160,1722607851932,-215.18818023,0.00019178,2]
[333895161,1722607851942,-500.0,0.00019178,2]
[333895162,1722607851951,-500.0,0.00019178,2]
[333895163,1722607851961,-500.0,0.00019178,2]
[333895164,1722607851971,-500.0,0.00019178,2]
[333895165,1722607851980,-500.0,0.00019178,2]
[333895166,1722607851989,-1389.66,0.00019178,2]
[333895167,1722607851999,-809.15,0.00019178,2]
[333895168,1722607852010,-1496.13,0.00019178,2]
[333895169,1722607852021,-500.0,0.00019178,2]
[333895170,1722607852030,-2045.96,0.00019178,2]
[333895171,1722607852040,-500.0,0.00019178,2]
[333895172,1722607852050,-2896.14,0.00019178,2]
[333895173,1722607852059,-1225.11,0.00019178,2]
[333895174,1722607852069,-500.0,0.00019178,2]
[333895175,1722607852078,-7096.68,0.00019178,2]
[333895176,1722607852087,-500.0,0.00019178,2]
[333895177,1722607852096,-500.0,0.00019178,2]
[333895178,1722607852105,-971.44,0.00019178,2]
[333895179,1722607852114,-500.0,0.00019178,2]
[333895180,1722607852123,-1972.0,0.00019178,2]
[333895181,1722607852133,-1343.98,0.00019178,2]
[333895182,1722607852142,-672.76,0.00019178,2]
[333895183,1722607852152,-537.78,0.00019178,2]
[333895184,1722607852161,-500.0,0.00019178,2]
[333895185,1722607852171,-500.0,0.00019178,2]
[333895186,1722607852180,-861.5,0.00019178,2]
[333895187,1722607852189,-500.0,0.00019178,2]
[333895188,1722607852198,-500.0,0.00019178,2]
[333895189,1722607852207,-2373.46,0.00019178,2]
[333895190,1722607852217,-500.0,0.00019178,2]
[333895191,1722607852226,-500.0,0.00019178,2]
[333895192,1722607852235,-1698.36,0.00019178,2]
[333895193,1722607852245,-3137.07,0.00019178,2]
[333895194,1722607852254,-500.0,0.00019178,2]
[333895195,1722607852263,-2606.6,0.00019178,2]
[333895196,1722607852274,-849.08,0.00019178,2]
[333895197,1722607852283,-3741.38,0.00019178,2]
[333895198,1722607852292,-1308.98,0.00019178,2]
[333895199,1722607852302,-1966.27,0.00019178,2]
[333895200,1722607852311,-500.0,0.00019178,2]
[333895201,1722607852320,-500.0,0.00019178,2]
[333895202,1722607852329,-500.0,0.00019178,2]
[333895203,1722607852339,-500.0,0.00019178,2]
[333895204,1722607852348,-556.78,0.00019178,2]
[333895205,1722607852357,-6927.5,0.00019178,2]
[333895206,1722607852366,-687.15,0.00019178,2]
[333895207,1722607852375,-500.0,0.00019178,2]
[333895208,1722607852385,-638.65,0.00019178,2]
[333895209,1722607852394,-1637.03,0.00019178,2]
[333895210,1722607852404,-500.0,0.00019178,2]
[333895211,1722607852413,-500.0,0.00019178,2]
[333895212,1722607852423,-561.37,0.00019178,2]
[333895213,1722607852432,-500.0,0.00019178,2]
[333895214,1722607852442,-1151.03,0.00019178,2]
[333895215,1722607852452,-1369.83,0.00019178,2]
[333895216,1722607852461,-10700.72,0.00019178,2]
[333895217,1722607852471,-523.75,0.00019178,2]
[333895218,1722607852480,-3336.62,0.00019178,2]
[333895219,1722607852489,-2779.22,0.00019178,2]
[333895220,1722607852498,-2526.87,0.00019178,2]
[333895221,1722607852507,-2014.72,0.00019178,2]
[333895222,1722607852518,-2382.95,0.00019178,2]
[333895223,1722607852527,-500.0,0.00019178,2]
[333895224,1722607852536,-500.0,0.00019178,2]
[333895225,1722607852545,-771.33,0.00019178,2]
[333895226,1722607852554,-776.22,0.00019178,2]
[333895227,1722607852564,-532.96,0.00019178,2]
[333895228,1722607852573,-500.0,0.00019178,2]
[333895229,1722607852583,-500.0,0.00019178,2]
[333895230,1722607852591,-500.0,0.00019178,2]
[333895231,1722607852600,-1011.54,0.00019178,2]
[333895232,1722607852609,-500.0,0.00019178,2]
[333895233,1722607852618,-500.0,0.00019178,2]
[333895234,1722607852628,-1535.72,0.00019178,2]
[333895235,1722607852638,-500.0,0.00019178,2]
[333895236,1722607852647,-500.0,0.00019178,2]
[333895237,1722607852658,-2226.67,0.00019178,2]
[333895238,1722607852668,-846.24,0.00019178,2]
[333895239,1722607852677,-503.32,0.00019178,2]
[333895240,1722607852687,-5582.46,0.00019178,2]
[333895241,1722607852695,-1227.51,0.00019178,2]
[333895242,1722607852704,-750.3,0.00019178,2]
[333895243,1722607852715,-500.0,0.00019178,2]
[333895244,1722607852725,-4462.6,0.00019178,2]
[333895245,1722607852734,-712.16,0.00019178,2]
[333895246,1722607852744,-2037.33,0.00019178,2]
[333895247,1722607852757,-1746.19,0.00019178,2]
[333895248,1722607852769,-549.63696978,0.00019178,2]
[333895249,1722607852780,-500.0,0.00019178,2]
[333895250,1722607852789,-500.0,0.00019178,2]
[333895251,1722607852798,-500.0,0.00019178,2]
[333895252,1722607852807,-1277.12,0.00019178,2]
[333895253,1722607852822,-500.0,0.00019178,2]
[333895254,1722607852832,-933.42,0.00019178,2]
[333895255,1722607852843,-500.0,0.00019178,2]
[333895256,1722607852852,-2996.48,0.00019178,2]
[333895257,1722607852862,-1350.4,0.00019178,2]
[333895258,1722607852871,-3787.6,0.00019178,2]
[333895259,1722607852880,-500.0,0.00019178,2]
[333895260,1722607852889,-500.0,0.00019178,2]
[333895261,1722607852899,-1869.73,0.00019178,2]
[333895262,1722607852908,-4878.64,0.00019178,2]
[333895263,1722607852920,-1397.34,0.00019178,2]
[333895264,1722607852930,-2593.62,0.00019178,2]
[333895265,1722607852943,-500.0,0.00019178,2]
[333895266,1722607852953,-500.0,0.00019178,2]
[333895267,1722607852963,-500.0,0.00019178,2]
[333895268,1722607852971,-2903.9,0.00019178,2]
[333895269,1722607852980,-1034.98,0.00019178,2]
[333895270,1722607852990,-500.0,0.00019178,2]
[333895271,1722607853000,-500.0,0.00019178,2]
[333895272,1722607853011,-1766.36,0.00019178,2]
[333895273,1722607853024,-500.0,0.00019178,2]
[333895274,1722607853034,-690.52,0.00019178,2]
[333895275,1722607853044,-2719.72,0.00019178,2]
[333895276,1722607853054,-1136.58,0.00019178,2]
[333895277,1722607853064,-687.75,0.00019178,2]
[333895278,1722607853073,-500.0,0.00019178,2]
[333895279,1722607853084,-1009.46,0.00019178,2]
[333895280,1722607853093,-533.8,0.00019178,2]
[333895281,1722607853103,-659.65,0.00019178,2]
[333895282,1722607853112,-500.0,0.00019178,2]
[333895283,1722607853122,-181.27769444,0.00019178,2]
[333895284,1722607853132,-25780.92,0.00019178,2]
[333895285,1722607853142,-2681.0,0.00019178,2]
[333895286,1722607853151,-2608.61,0.00019178,2]
[333895287,1722607853161,-500.0,0.00019178,2]
[333895288,1722607853171,-1517.4,0.00019178,2]
[333895289,1722607853180,-2343.84,0.00019178,2]
[333895290,1722607853189,-4818.83,0.00019178,2]
[333895291,1722607853199,-978.07,0.00019178,2]
[333895292,1722607853208,-500.0,0.00019178,2]
[333895293,1722607853217,-500.0,0.00019178,2]
[333895294,1722607853228,-500.0,0.00019178,2]
[333895295,1722607853237,-500.0,0.00019178,2]
[333895296,1722607853248,-24963.44,0.00019178,2]
[333895297,1722607853258,-927.62,0.00019178,2]
[333895298,1722607853270,-2370.56,0.00019178,2]
[333895299,1722607853279,-1583.64,0.00019178,2]
[333895300,1722607853289,-500.0,0.00019178,2]
[333895301,1722607853298,-500.0,0.00019178,2]
[333895302,1722607853308,-500.0,0.00019178,2]
[333895303,1722607853317,-992.88,0.00019178,2]
[333895304,1722607853327,-24327.84,0.00019178,2]
[333895305,1722607853336,-1491.56,0.00019178,2]
[333895306,1722607853345,-500.0,0.00019178,2]
[333895307,1722607853355,-500.0,0.00019178,2]
[333895308,1722607853364,-64636.01,0.00019178,2]
[333895309,1722607853375,-500.0,0.00019178,2]
[333895310,1722607853384,-500.0,0.00019178,2]
[333895311,1722607853394,-4925.38,0.00019178,2]
[333895312,1722607853403,-1160.5,0.00019178,2]
[333895313,1722607853413,-2242.01,0.00019178,2]
[333895314,1722607853423,-500.0,0.00019178,2]
[333895315,1722607853432,-678.0,0.00019178,2]
[333895316,1722607853441,-500.0,0.00019178,2]
[333895317,1722607853451,-2078.39,0.00019178,2]
[333895318,1722607853460,-4313.51,0.00019178,2]
[333895319,1722607853470,-500.0,0.00019178,2]
[333895320,1722607853479,-2314.47,0.00019178,2]
[333895321,1722607853488,-500.0,0.00019178,2]
[333895322,1722607853497,-2119.53,0.00019178,2]
[333895323,1722607853506,-500.0,0.00019178,2]
[333895324,1722607853516,-2276.56,0.00019178,2]
[333895325,1722607853527,-647.68,0.00019178,2]
[333895326,1722607853537,-510.43,0.00019178,2]
[333895327,1722607853546,-500.0,0.00019178,2]
[333895328,1722607853556,-792.18,0.00019178,2]
[333895329,1722607853565,-1856.3,0.00019178,2]
[333895330,1722607853575,-3648.76,0.00019178,2]
[333895331,1722607853584,-767.99,0.00019178,2]
[333895332,1722607853593,-500.0,0.00019178,2]
[333895333,1722607853602,-500.0,0.00019178,2]
[333895334,1722607853611,-500.0,0.00019178,2]
[333895335,1722607853620,-953.72,0.00019178,2]
[333895336,1722607853629,-3315.91,0.00019178,2]
[333895337,1722607853638,-500.0,0.00019178,2]
[333895338,1722607853647,-2307.28,0.00019178,2]
[333895339,1722607853656,-1574.42,0.00019178,2]
[333895340,1722607853665,-6958.28,0.00019178,2]
[333895341,1722607853674,-5846.97,0.00019178,2]
[333895342,1722607853683,-1061.37,0.00019178,2]
[333895343,1722607853692,-500.0,0.00019178,2]
[333895344,1722607853701,-10788.41,0.00019178,2]
[333895345,1722607853710,-1171.86,0.00019178,2]
[333895346,1722607853721,-1490.3,0.00019178,2]
[333895347,1722607853730,-500.0,0.00019178,2]
[333895348,1722607853740,-475.37011267,0.00019178,2]
[333895349,1722607853752,-1421.19,0.00019178,2]
[333895350,1722607853761,-500.0,0.00019178,2]
[333895351,1722607853771,-500.0,0.00019178,2]
[333895352,1722607853780,-500.0,0.00019178,2]
[333895353,1722607853789,-557.06,0.00019178,2]
[333895354,1722607853798,-930.9,0.00019178,2]
[333895355,1722607853807,-500.0,0.00019178,2]
[333895356,1722607853816,-500.0,0.00019178,2]
[333895357,1722607853826,-2982.71,0.00019178,2]
[333895358,1722607853835,-1506.28,0.00019178,2]
[333895359,1722607853845,-6292.53,0.00019178,2]
[333895360,1722607853854,-500.0,0.00019178,2]
[333895361,1722607853863,-500.0,0.00019178,2]
[333895362,1722607853874,-500.0,0.00019178,2]
[333895363,1722607853883,-1114.98,0.00019178,2]
[333895364,1722607853892,-1523.81,0.00019178,2]
[333895365,1722607853901,-2999.04,0.00019178,2]
[333895366,1722607853911,-500.0,0.00019178,2]
[333895367,1722607853921,-567.81,0.00019178,2]
[333895368,1722607853930,-669.99,0.00019178,2]
[333895369,1722607853939,-500.0,0.00019178,2]
[333895370,1722607853948,-1071.24,0.00019178,2]
[333895371,1722607853958,-6134.28,0.00019178,2]
[333895372,1722607853967,-500.0,0.00019178,2]
[333895373,1722607853976,-604.78,0.00019178,2]
[333895374,1722607853986,-1259.25,0.00019178,2]
[333895375,1722607853995,-500.0,0.00019178,2]
[333895376,1722607854004,-11639.06,0.00019178,2]
[333895377,1722607854014,-500.0,0.00019178,2]
[333895378,1722607854026,-500.0,0.00019178,2]
[333895379,1722607854035,-780.2,0.00019178,2]
[333895380,1722607854045,-11729.93,0.00019178,2]
[333895381,1722607854054,-3120.29,0.00019178,2]
[333895382,1722607854064,-1457.62,0.00019178,2]
[333895383,1722607854074,-3245.74,0.00019178,2]
[333895384,1722607854084,-657.6,0.00019178,2]
[333895385,1722607854094,-840.34,0.00019178,2]
[333895386,1722607854104,-500.0,0.00019178,2]
[333895387,1722607854113,-500.0,0.00019178,2]
[333895388,1722607854123,-2000.0,0.00019178,2]
[333895389,1722607854133,-3075.4,0.00019178,2]
[333895390,1722607854143,-500.0,0.00019178,2]
[333895391,1722607854153,-3690.29,0.00019178,2]
[333895392,1722607854162,-810.11,0.00019178,2]
[333895393,1722607854172,-500.0,0.00019178,2]
[333895394,1722607854182,-300.36118032,0.00019178,2]
[333895395,1722607854191,-5329.93,0.00019178,2]
[333895396,1722607854201,-500.0,0.00019178,2]
[333895397,1722607854210,-4174.53,0.00019178,2]
[333895398,1722607854220,-2352.09,0.00019178,2]
[333895399,1722607854411,-400.0,0.00019178,2]
[333895400,1722607854421,-8639.61,0.00019178,2]
[333895401,1722607854431,-5398.32,0.00019178,2]
[333895402,1722607854441,-500.0,0.00019178,2]
[333895403,1722607854451,-1857.77,0.00019178,2]
[333895404,1722607854461,-1255.82,0.00019178,2]
[333895405,1722607854470,-575.33,0.00019178,2]
[333895406,1722607854480,-1439.9,0.00019178,2]
[333895407,1722607854489,-1145.7999476,0.00019178,2]
[333895408,1722607854499,-668.94,0.00019178,2]
[333895409,1722607854508,-500.0,0.00019178,2]
[333895410,1722607854519,-2138.52,0.00019178,2]
[333895411,1722607854530,-500.0,0.00019178,2]
[333895412,1722607854539,-2599.21,0.00019178,2]
[333895413,1722607854549,-4781.69,0.00019178,2]
[333895414,1722607854559,-11559.88,0.00019178,2]
[333895415,1722607854569,-1518.95,0.00019178,2]
[333895416,1722607854579,-500.0,0.00019178,2]
[333895417,1722607854588,-500.0,0.00019178,2]
[333895418,1722607854598,-500.0,0.00019178,2]
[333895419,1722607854607,-1690.18,0.00019178,2]
[333895420,1722607854617,-1036.35,0.00019178,2]
[333895421,1722607854626,-500.0,0.00019178,2]
[333895422,1722607854636,-500.0,0.00019178,2]
[333895423,1722607854646,-500.0,0.00019178,2]
[333895424,1722607854655,-500.0,0.00019178,2]
[333895425,1722607854664,-500.0,0.00019178,2]
[333895426,1722607854674,-1126.86,0.00019178,2]
[333895427,1722607854683,-952.09,0.00019178,2]
[333895428,1722607854692,-14496.91,0.00019178,2]
[333895429,1722607854703,-500.0,0.00019178,2]
[333895430,1722607854712,-3474.14,0.00019178,2]
[333895431,1722607854721,-334.48500933,0.00019178,2]
[333895432,1722607854731,-2457.51,0.00019178,2]
[333895433,1722607854741,-1791.32,0.00019178,2]
[333895434,1722607854753,-500.0,0.00019178,2]
[333895435,1722607854762,-536.15,0.00019178,2]
[333895436,1722607854773,-1107.65,0.00019178,2]
[333895437,1722607854782,-4126.48,0.00019178,2]
[333895438,1722607854792,-500.0,0.00019178,2]
[333895439,1722607854802,-1802.31,0.00019178,2]
[333895440,1722607854811,-5130.16,0.00019178,2]
[333895441,1722607854821,-319.8,0.00019178,2]
[333895442,1722607854832,-3459.57,0.00019178,2]
[333895443,1722607854842,-3422.9,0.00019178,2]
[333895444,1722607854852,-500.0,0.00019178,2]
[333895445,1722607854862,-500.0,0.00019178,2]
[333895446,1722607854872,-4169.39,0.00019178,2]
[333895447,1722607854882,-8926.52,0.00019178,2]
[333895448,1722607854891,-3811.73,0.00019178,2]
[333895449,1722607854901,-2957.01,0.00019178,2]
[333895450,1722607854910,-500.0,0.00019178,2]
[333895451,1722607854919,-17325.05,0.00019178,2]
[333895452,1722607854928,-1981.36,0.00019178,2]
[333895453,1722607854938,-500.0,0.00019178,2]
[333895454,1722607854947,-730.01,0.00019178,2]
[333895455,1722607854957,-500.0,0.00019178,2]
[333895456,1722607854966,-3284.99,0.00019178,2]
[333895457,1722607854976,-3165.95,0.00019178,2]
[333895458,1722607854985,-2417.94,0.00019178,2]
[333895459,1722607854994,-500.0,0.00019178,2]
[333895460,1722607855005,-1474.88,0.00019178,2]
[333895461,1722607855014,-500.0,0.00019178,2]
[333895462,1722607855026,-10009.73,0.00019178,2]
[333895463,1722607855036,-500.0,0.00019178,2]
[333895464,1722607855046,-500.0,0.00019178,2]
[333895465,1722607855056,-687.23,0.00019178,2]
[333895466,1722607855065,-2652.76,0.00019178,2]
[333895467,1722607855075,-4451.27,0.00019178,2]
[333895468,1722607855084,-4013.78,0.00019178,2]
[333895469,1722607855094,-2059.42,0.00019178,2]
[333895470,1722607855103,-500.0,0.00019178,2]
[333895471,1722607855113,-35000.62,0.00019178,2]
[333895472,1722607855122,-500.0,0.00019178,2]
[333895473,1722607855132,-179.46931492,0.00019178,2]
[333895474,1722607855142,-14597.6,0.00019178,2]
[333895475,1722607855152,-633.56,0.00019178,2]
[333895476,1722607855161,-500.0,0.00019178,2]
[333895477,1722607855171,-1215.93,0.00019178,2]
[333895478,1722607855180,-2531.27,0.00019178,2]
[333895479,1722607855190,-500.0,0.00019178,2]
[333895480,1722607855200,-1003.38,0.00019178,2]
[333895481,1722607855210,-2009.15,0.00019178,2]
[333895482,1722607855220,-3170.82,0.00019178,2]
[333895483,1722607855240,-2654.79,0.00019178,2]
[333895484,1722607855251,-3428.26,0.00019178,2]
[333895485,1722607855261,-4499.31,0.00019178,2]
[333895486,1722607855273,-7636.54,0.00019178,2]
[333895487,1722607855284,-1700.19,0.00019178,2]
[333895488,1722607855293,-514.79,0.00019178,2]
[333895489,1722607855303,-500.0,0.00019178,2]
[333895490,1722607855313,-6824.45,0.00019178,2]
[333895491,1722607855322,-702.35,0.00019178,2]
[333895492,1722607855332,-4335.34,0.00019178,2]
[333895493,1722607855342,-768.34,0.00019178,2]
[333895494,1722607855352,-2762.2,0.00019178,2]
[333895495,1722607855362,-2026.43,0.00019178,2]
[333895496,1722607855372,-4191.01,0.00019178,2]
[333895497,1722607855381,-2671.5,0.00019178,2]
[333895498,1722607855391,-3514.35,0.00019178,2]
[333895499,1722607855401,-500.0,0.00019178,2]
[333895500,1722607855411,-2381.7,0.00019178,2]
[333895501,1722607855421,-500.0,0.00019178,2]
[333895502,1722607855431,-3245.97,0.00019178,2]
[333895503,1722607855442,-963.58,0.00019178,2]
[333895504,1722607855452,-3093.68,0.00019178,2]
[333895505,1722607855462,-7133.0223204,0.00019178,2]
[333895506,1722607855472,-12169.22,0.00019178,2]
[333895507,1722607855482,-2908.17,0.00019178,2]
[333895508,1722607855492,-500.0,0.00019178,2]
[333895509,1722607855501,-500.0,0.00019178,2]
[333895510,1722607855511,-1374.87,0.00019178,2]
[333895511,1722607855523,-500.0,0.00019178,2]
[333895512,1722607855533,-500.0,0.00019178,2]
[333895513,1722607855542,-4913.73,0.00019178,2]
[333895514,1722607855552,-500.0,0.00019178,2]
[333895515,1722607855563,-1034.53,0.00019178,2]
[333895516,1722607855572,-7294.6,0.00019178,2]
[333895517,1722607855581,-1865.32,0.00019178,2]
[333895518,1722607855591,-7816.93090727,0.00019178,2]
[333895519,1722607856881,-3070.56909273,0.00019178,2]
[333895520,1722607856890,-1041.03,0.00019178,2]
[333895521,1722607856899,-522.72,0.00019178,2]
[333895522,1722607856909,-7219.12,0.00019178,2]
[333895523,1722607856919,-500.0,0.00019178,2]
[333895524,1722607856930,-3434.53,0.00019178,2]
[333895525,1722607856940,-500.0,0.00019178,2]
[333895526,1722607856949,-500.0,0.00019178,2]
[333895527,1722607856959,-677.58199397,0.00019178,2]
[333895528,1722607856971,-403.40800603,0.00019178,2]
[333895529,1722607856980,-150.0,0.00019178,2]
[333895530,1722607856990,-500.0,0.00019178,2]
[333895531,1722607857000,-1794.09,0.00019178,2]
[333895532,1722607857011,-13462.74,0.00019178,2]
[333895533,1722607857021,-3496.49,0.00019178,2]
[333895534,1722607857031,-500.0,0.00019178,2]
[333895535,1722607857041,-290.37340407,0.00019178,2]
[333895536,1722607857051,-579.94,0.00019178,2]
[333895537,1722607857061,-500.0,0.00019178,2]
[333895538,1722607857071,-2109.48,0.00019178,2]
[333895539,1722607857081,-2188.39,0.00019178,2]
[333895540,1722607857091,-1780.87,0.00019178,2]
[333895541,1722607857101,-500.0,0.00019178,2]
[333895542,1722607857111,-1215.48,0.00019178,2]
[333895543,1722607857121,-2907.83,0.00019178,2]
[333895544,1722607857131,-315.9085899,0.00019178,2]
[333895545,1722607857169,-636.49603942,0.00019178,2]
[333895546,1722607857181,-265.9966997,0.00019178,2]
[333895547,1722607858199,-552.86,0.00019078,2]
[333895548,1722607858211,-3052.54940924,0.00019078,2]
[333895549,1722607858222,-814.95867098,0.00019178,2]
[333895550,1722607858232,-1843.84,0.00019178,2]
[333895551,1722607858242,-39.23061978,0.00019178,2]
[333895552,1722607858304,-460.76938022,0.00019178,2]
[333895553,1722607858315,-500.0,0.00019178,2]
[333895554,1722607858325,-2855.68361978,0.00019178,2]
[333895555,1722607858336,-5145.30441684,0.00019178,2]
[333895556,1722607858347,-338.97971303,0.00019178,2]
[333895557,1722607858359,-191.71225035,0.00019178,2]
[333895558,1722607858369,-500.0,0.00019178,2]
[333895559,1722607858378,-155.48698885,0.00019178,2]
[333895562,1722607981724,160.0,0.00024874,120]
[333895563,1722607993169,1000.0,0.00027,120]
[333895564,1722608016191,200.0,0.00027,120]
[333895565,1722608040234,1027.0,0.00027,120]
[333895637,1722608760978,300.0,0.00010999,2]
[333895638,1722608822594,200.77,0.00010959,2]
[333895639,1722608824911,150.0,0.00010999,2]